fUSD/lending_fUSD_20240626
["ID","MTS","AMOUNT","RATE_DAILY","PERIOD"]
[330423776,1719371438004,-1000.0,0.00018999,2]
[330423777,1719371438018,-7274.96950259,0.00019,2]
[330423779,1719371438627,-1428.6939497,0.00019,2]
[330423782,1719371438639,-650.84765446,0.00019,2]
[330423784,1719371438651,-1705.4,0.00019,2]
[330423785,1719371438662,-6516.51,0.00019,2]
[330423786,1719371438674,-8291.16952772,0.00019,2]
[330423787,1719371438686,-6476.8,0.00019,2]
[330423788,1719371438698,-404.37492552,0.00019,2]
[330423789,1719371438709,-807.08544,0.00019,2]
[330423790,1719371438721,-1670.98146822,0.00019,2]
[330423791,1719371438734,-2320.31359596,0.00019,2]
[330423796,1719371441568,-2300.95892589,0.00019,2]
[330423797,1719371441588,-744.63634586,0.00019,2]
[330423798,1719371441607,-5348.04718558,0.00019,2]
[330423799,1719371441628,-533.70475822,0.00019,2]
[330423800,1719371441650,-2326.50000047,0.00019,2]
[330423801,1719371441669,-22206.78550749,0.00019,2]
[330423802,1719371441683,-138628.76989346,0.00019,2]
[330423803,1719371441703,-35540.95885,0.00019,2]
[330423804,1719371441716,-173.24137171,0.00019023,2]
[330423805,1719371441731,-9336.66753791,0.00019123,2]
[330423806,1719371441747,-420.0,0.00019433,2]
[330423807,1719371441765,-9336.66753787,0.00019542,2]
[330423808,1719371441780,-250.0,0.0001971,2]
[330423809,1719371441792,-173.24137169,0.00019796,2]
[330423810,1719371441807,-1098.11,0.00019915,2]
[330423811,1719371441822,-255.0,0.0001992,2]
[330423812,1719371441836,-9336.66753787,0.0001996,2]
[330423813,1719371441849,-500.0,0.00019998,2]
[330423814,1719371441861,-500.0,0.00019998,2]
[330423815,1719371441884,-415.53206713,0.00019998,2]
[330423816,1719371441899,-7438.25184872,0.00019999,2]
[330423817,1719371441919,-9865.16691886,0.0002,2]
[330423818,1719371441937,-150.0,0.0002,2]
[330423819,1719371441955,-700.0,0.0002,5]
[330423820,1719371441973,-187.17,0.00020269,2]
[330423821,1719371441990,-250.0,0.0002029,2]
[330423822,1719371442005,-1000.0,0.00020298,2]
[330423823,1719371442025,-1335.86,0.00020352,2]
[330423824,1719371442040,-9336.66753787,0.00020379,2]
[330423825,1719371442058,-2769.0,0.000204,4]
[330423826,1719371442073,-233.01,0.0002042,2]
[330423827,1719371442087,-233.66,0.000205,2]
[330423828,1719371442103,-173.24137169,0.0002057,2]
[330423829,1719371442118,-461.52,0.00020653,2]
[330423830,1719371442132,-6272.64999256,0.00020797,2]
[330423831,1719371442146,-9336.66753787,0.00020797,2]
[330423832,1719371442160,-11096.078044,0.000208,3]
[330423833,1719371442173,-1411.0,0.00021,2]
[330423834,1719371442186,-677.0,0.00021,4]
[330423835,1719371442200,-1250.0,0.00021,2]
[330423836,1719371442214,-206.02,0.00021021,2]
[330423837,1719371442229,-1757.94329266,0.00021059,2]
[330423838,1719371442244,-33288.234132,0.0002106,3]
[330423839,1719371442258,-50000.0,0.0002107,2]
[330423840,1719371442272,-587.0,0.00021208,2]
[330423841,1719371442287,-9336.66753787,0.00021216,2]
[330423842,1719371442301,-165.76,0.00021287,2]
[330423843,1719371442315,-173.24137169,0.00021343,2]
[330423844,1719371442328,-255.0,0.0002161,2]
[330423845,1719371442342,-11096.078044,0.00021624,3]
[330423846,1719371442356,-9336.66753787,0.00021634,2]
[330423847,1719371442370,-866.90298966,0.00021643,2]
[330423848,1719371442384,-632.39,0.00021644,2]
[330423849,1719371442397,-157.35,0.00021644,2]
[330423850,1719371442411,-161.82,0.00021644,2]
[330423851,1719371442424,-863.04,0.00021917,4]
[330423852,1719371442438,-255.16,0.00021918,2]
[330423853,1719371442452,-3965.70350846,0.00021989,2]
[330423854,1719371442465,-11096.078044,0.0002199,3]
[330423855,1719371442480,-3071.06619753,0.00021999,2]
[330423856,1719371442494,-1000.0,0.00021999,2]
[330423857,1719371442508,-3071.06619753,0.00021999,2]
[330423858,1719371442521,-19622.34939314,0.00022,2]
[330423859,1719371442535,-500.27575896,0.00022,2]
[330423860,1719371442548,-160780.67155999,0.00022,4]
[330423867,1719371443930,-796.40776409,0.00016969,2]
[330423868,1719371443939,-333.44001428,0.00021108,2]
[330423869,1719371443949,-2863.10728625,0.00022,4]
[330423870,1719371443960,-633.24,0.00022,4]
[330423871,1719371443972,-9845.86782378,0.00022,4]
[330423872,1719371443986,-7160.00000002,0.00022,4]
[330423873,1719371443998,-201317.62577515,0.00022,4]
[330423874,1719371444012,-849.7,0.00022027,2]
[330423875,1719371444024,-9336.66753787,0.00022053,2]
[330423876,1719371444034,-622.38422952,0.00022116,2]
[330423877,1719371444045,-173.24137169,0.00022117,2]
[330423878,1719371444055,-622.38422952,0.00022163,2]
[330423879,1719371444066,-527.79,0.00022164,2]
[330423880,1719371444075,-423.79,0.00022164,2]
[330423881,1719371444087,-164.65,0.00022164,2]
[330423882,1719371444586,-150.0,0.00022164,2]
[330423883,1719371444616,-354.39,0.00022164,2]
[330423884,1719371444647,-150.0,0.00022164,2]
[330423885,1719371444657,-863.04,0.00022191,4]
[330423886,1719371444667,-82643.0,0.000224,2]
[330423887,1719371444676,-150.0,0.00022438,2]
[330423888,1719371444686,-269.38352443,0.0002246,2]
[330423889,1719371444695,-11096.078044,0.00022461,3]
[330423890,1719371444704,-863.04,0.00022465,4]
[330423891,1719371444714,-1265.44444787,0.00022465,2]
[330423892,1719371444723,-152.0,0.00022467,3]
[330423893,1719371444732,-2100.0,0.00022471,2]
[330423894,1719371444741,-9336.66753787,0.00022471,2]
[330423895,1719371444750,-715.91569762,0.00022514,2]
[330423896,1719371444759,-339.34174154,0.00022515,2]
[330423897,1719371444768,-155.0,0.00022516,2]
[330423898,1719371444777,-538.53592532,0.0002253,2]
[330423899,1719371444786,-853.06,0.00022557,2]
[330423900,1719371444795,-853.06,0.00022557,2]
[330423901,1719371444805,-853.06,0.00022557,2]
[330423902,1719371444814,-863.4,0.00022557,2]
[330423903,1719371444823,-853.06,0.00022557,2]
[330423904,1719371444832,-11096.078044,0.00022672,3]
[330423905,1719371444841,-7430.16,0.00022682,2]
[330423906,1719371444850,-1909.18354368,0.00022739,2]
[330423907,1719371444859,-863.04,0.00022739,4]
[330423908,1719371444868,-1269.98169867,0.00022779,2]
[330423909,1719371444878,-200.0,0.00022806,2]
[330423910,1719371444888,-955.85753929,0.0002282,2]
[330423911,1719371444898,-1000.0,0.00022835,2]
[330423912,1719371444908,-253.90432169,0.00022869,2]
[330423913,1719371444918,-226.87404253,0.00022869,5]
[330423914,1719371444929,-520.49206868,0.0002288,2]
[330423915,1719371444939,-11096.078044,0.0002288,3]
[330423916,1719371444949,-188.02177924,0.00022881,2]
[330423917,1719371444959,-264.35794991,0.00022881,2]
[330423918,1719371444968,-520.49206862,0.00022881,2]
[330423919,1719371444977,-520.49206862,0.00022882,2]
[330423920,1719371444986,-520.49206862,0.00022883,2]
[330423921,1719371444996,-520.49206862,0.00022884,2]
[330423922,1719371445006,-543.96475932,0.00022884,2]
[330423923,1719371445020,-520.49206862,0.00022885,2]
[330423924,1719371445030,-520.49206862,0.00022885,2]
[330423925,1719371445041,-520.49206862,0.00022886,2]
[330423926,1719371445051,-520.49206862,0.00022887,2]
[330423927,1719371445061,-193.57265994,0.00022888,2]
[330423928,1719371445071,-520.49206862,0.00022888,2]
[330423929,1719371445080,-520.49206862,0.00022889,2]
[330423930,1719371445092,-3177.29702642,0.0002289,2]
[330423931,1719371445101,-157.87105774,0.0002289,2]
[330423932,1719371445110,-520.49206862,0.0002289,2]
[330423933,1719371445120,-9336.66753787,0.0002289,2]
[330423934,1719371445129,-173.24137169,0.0002289,2]
[330423935,1719371445139,-11096.078044,0.0002289,3]
[330423936,1719371445148,-3621.38575983,0.0002289,2]
[330423937,1719371445158,-266.93979102,0.0002289,2]
[330423938,1719371445168,-10000.0,0.0002289,2]
[330423939,1719371445177,-440.2968,0.0002289,2]
[330423940,1719371445187,-490.0,0.000229,5]
[330423941,1719371445195,-981.0,0.000229,5]
[330423942,1719371445205,-257.0,0.000229,2]
[330423943,1719371445214,-514.0,0.000229,2]
[330423944,1719371445223,-628.4,0.000229,2]
[330423945,1719371445233,-981.0,0.000229,5]
[330423946,1719371445242,-461.52,0.00022916,2]
[330423947,1719371445251,-185.70235427,0.00022922,2]
[330423948,1719371445260,-158.27105518,0.00022923,2]
[330423949,1719371445269,-155.35741488,0.00022924,2]
[330423950,1719371445279,-351.85255065,0.00022925,2]
[330423951,1719371445288,-378.50749836,0.00022952,2]
[330423952,1719371445297,-306.74165946,0.00022952,2]
[330423953,1719371445306,-155.27710681,0.00022953,2]
[330423954,1719371445315,-163.63235046,0.00022953,2]
[330423955,1719371445325,-155.0,0.00022953,2]
[330423956,1719371445334,-532.91398684,0.00022953,2]
[330423957,1719371445343,-160.6222066,0.00022953,2]
[330423958,1719371445352,-155.16542117,0.00022953,2]
[330423959,1719371445361,-482.94283217,0.00022953,2]
[330423960,1719371445370,-519.86065789,0.00022953,2]
[330423961,1719371445379,-155.0,0.00022953,2]
[330423962,1719371445388,-217.87188322,0.00022954,2]
[330423963,1719371445397,-365.64945704,0.00022954,2]
[330423964,1719371445406,-155.40265866,0.00022954,2]
[330423965,1719371445415,-483.77544876,0.00022954,2]
[330423966,1719371445424,-604.26238927,0.00022954,2]
[330423967,1719371445435,-326.91214886,0.00022954,2]
[330423968,1719371445444,-155.0,0.00022954,2]
[330423969,1719371445453,-305.22875309,0.00022959,2]
[330423970,1719371445462,-150.5,0.0002296,30]
[330423971,1719371445471,-680.0,0.0002296,30]
[330423972,1719371445480,-680.0,0.0002296,30]
[330423973,1719371445489,-365.2873899,0.00022961,2]
[330423974,1719371445499,-750.0,0.00022962,2]
[330423975,1719371445508,-1133.92751376,0.00022962,2]
[330423976,1719371445517,-1899.45919056,0.00022962,2]
[330423977,1719371445527,-296.51463104,0.00022969,2]
[330423978,1719371445536,-122056.858484,0.0002297,3]
[330423979,1719371445545,-856.20256344,0.0002297,3]
[330423980,1719371445555,-150.5,0.0002297,30]
[330423981,1719371445564,-680.0,0.0002297,30]
[330423982,1719371445573,-680.0,0.0002297,30]
[330423983,1719371445583,-680.0,0.0002297,30]
[330423984,1719371445592,-680.0,0.0002297,30]
[330423985,1719371445601,-11096.078044,0.00022973,3]
[330423986,1719371445611,-368.47136735,0.00022973,2]
[330423987,1719371445620,-328.10597245,0.00022979,2]
[330423988,1719371445630,-500.0,0.00022979,2]
[330423989,1719371445639,-260.95447528,0.00022979,2]
[330423990,1719371445648,-356.78165151,0.0002298,2]
[330423991,1719371445658,-22401.66262381,0.0002298,2]
[330423992,1719371445667,-55480.39022,0.0002298,3]
[330423993,1719371445676,-1712.40512688,0.0002298,3]
[330423994,1719371445686,-150.5,0.0002298,30]
[330423995,1719371445695,-197.29,0.0002298,30]
[330423996,1719371445705,-680.0,0.0002298,30]
[330423997,1719371445714,-680.0,0.0002298,30]
[330423998,1719371445724,-680.0,0.0002298,30]
[330423999,1719371445735,-680.0,0.0002298,30]
[330424000,1719371445747,-669.4540819,0.00022983,2]
[330424001,1719371445758,-21188.7298162,0.00022983,2]
[330424002,1719371445768,-1518.3820529,0.00022983,2]
[330424003,1719371445777,-980.8659223,0.00022983,2]
[330424004,1719371445797,-1277.3107727,0.00022983,2]
[330424005,1719371445808,-198.559745,0.00022989,2]
[330424006,1719371445818,-477032.02272155,0.0002299,7]
[330424014,1719371446627,-158.96341014,0.00022921,2]
[330424015,1719371446637,-346.80315715,0.00022952,5]
[330424016,1719371446650,-21.46626803,0.00022952,5]
[330424017,1719371446660,-473.72992682,0.0002299,7]
[330424029,1719372176513,-155.78135216,0.00014846,2]
[330424030,1719372176535,-284.41538566,0.00014897,2]
[330424033,1719372225087,-239.5842,0.00016305,2]
[330424034,1719372225108,-487.513979,0.00016969,2]
[330424035,1719372291081,-392.29,0.00019447,2]
[330424036,1719372291105,-1000.0,0.00019552,2]
[330424037,1719372291128,-1000.0,0.0001965,2]
[330424038,1719372291152,-593.94298318,0.00019673,2]
[330424043,1719372632435,-1265.04262178,0.000193,3]
[330424044,1719372632447,-10487.95737822,0.000193,3]
[330424045,1719372632457,-1757.94329266,0.00019349,2]
[330424046,1719372632466,-3965.70350846,0.00019349,2]
[330424048,1719372632481,-810.04382081,0.00019351,2]
[330424049,1719372632493,-1697.0,0.00019351,2]
[330424054,1719372632940,-300.0,0.00019499,2]
[330424055,1719372632950,-169.61234555,0.00019673,2]
[330424056,1719372632959,-273.6629476,0.00019673,2]
[330424057,1719372632972,-261.6726,0.00019673,2]
[330424060,1719372638678,-842.43321446,0.00019499,2]
[330424062,1719372638688,-22129.96144746,0.00019673,2]
[330424064,1719372638699,-2524.0,0.00019673,2]
[330424066,1719372638711,-148980.4317484,0.00019673,2]
[330424067,1719372638721,-11753.0,0.000199,5]
[330424068,1719372638732,-269.38352443,0.00019999,2]
[330424069,1719372638742,-1000.0,0.0002001,2]
[330424070,1719372638752,-155.0,0.00020299,2]
[330424071,1719372638761,-2928.0,0.000204,4]
[330424072,1719372638771,-1250.0,0.00021,2]
[330424073,1719372638781,-1000.0,0.00021218,2]
[330424074,1719372638791,-175.11,0.00021324,2]
[330424075,1719372638801,-250.0,0.00021446,2]
[330424076,1719372638811,-250.0,0.00021454,2]
[330424077,1719372638820,-233.66,0.00021485,2]
[330424078,1719372638830,-600.77,0.00021644,2]
[330424079,1719372638840,-392.29,0.00021711,2]
[330424080,1719372638849,-719.2,0.00021917,4]
[330424081,1719372638859,-212.63,0.00021918,2]
[330424082,1719372638869,-6272.64999256,0.00021999,2]
[330424083,1719372638879,-5000.0,0.00022,5]
[330424084,1719372638888,-719.2,0.00022191,4]
[330424085,1719372638898,-1000.0,0.00022389,2]
[330424086,1719372638908,-912.68390488,0.00022389,2]
[330424087,1719372638917,-1000.0,0.00022389,2]
[330424088,1719372638927,-3818.70109817,0.0002239,2]
[330424089,1719372638936,-719.2,0.00022465,4]
[330424090,1719372638946,-841.89,0.00022524,2]
[330424091,1719372638956,-1705.64,0.00022524,2]
[330424092,1719372638966,-153.17349265,0.0002268,2]
[330424093,1719372638976,-153.17349265,0.0002271,2]
[330424094,1719372638986,-719.2,0.00022739,4]
[330424095,1719372638996,-153.17349265,0.0002274,2]
[330424096,1719372639006,-2100.0,0.00022742,2]
[330424097,1719372639016,-7438.25184872,0.00022769,2]
[330424098,1719372639025,-49007.58740509,0.0002277,2]
[330424099,1719372639042,-10688.68893377,0.0002277,2]
[330424100,1719372639055,-153.17349265,0.0002277,2]
[330424101,1719372639065,-153.17349265,0.000228,2]
[330424102,1719372639075,-1269.98169867,0.0002282,2]
[330424103,1719372639085,-153.17349265,0.0002283,2]
[330424104,1719372639095,-518.89875355,0.00022845,2]
[330424105,1719372639107,-82.94553299,0.00022845,2]
[330424106,1719372639118,-1000.0,0.00022852,2]
[330424107,1719372639128,-157.28134079,0.00022858,2]
[330424108,1719372639139,-530.27941475,0.00022859,3]
[330424109,1719372639152,-1886.88,0.00022859,3]
[330424110,1719372639166,-1259.0183075,0.00022859,3]
[330424111,1719372639178,-431.381434,0.00022859,3]
[330424112,1719372639190,-419.6410628,0.00022859,3]
[330424113,1719372640235,-2199.44251202,0.00022859,3]
[330424114,1719372640248,-418.31133617,0.00022859,3]
[330424115,1719372641029,-2101.77763608,0.00022859,3]
[330424116,1719372641039,-153.17349265,0.0002286,2]
[330424117,1719372641050,-3071.06619753,0.00022865,2]
[330424118,1719372641061,-866.90298966,0.00022865,2]
[330424119,1719372641071,-300.384536,0.00022867,2]
[330424120,1719372641081,-6325.6056783,0.00022868,3]
[330424130,1719372643645,-269.38352443,0.00019899,2]
[330424132,1719372643655,-990.61647557,0.00022868,3]
[330424134,1719372643668,-306.49141146,0.00022868,3]
[330424135,1719372643680,-1624.01813799,0.00022868,3]
[330424137,1719372643690,-1000.0,0.00022868,2]
[330424138,1719372643701,-422.4948984,0.00022869,2]
[330424139,1719372643711,-103.48696361,0.0002287,2]
[330424141,1719372644279,-71.55193639,0.0002287,2]
[330424143,1719372644289,-510.97353991,0.0002287,2]
[330424145,1719372644300,-422.7159626,0.0002287,2]
[330424269,1719372646755,-681.14,0.0002287,2]
[330424270,1719372646767,-3150.0,0.0002287,2]
[330424271,1719372646779,-629.7,0.0002287,2]
[330424273,1719372824478,5189.3875,0.00014,2]
[330424274,1719372836397,4010.5279241,9e-05,2]
[330424275,1719372853446,155.00619628,0.00011,2]
[330424276,1719372858641,155.78135216,0.00010909,2]
[330424277,1719372866985,284.41538566,0.00010909,2]
[330424278,1719372871004,1179.74342198,6.94e-05,2]
[330424279,1719372871590,150.5,0.0001399,30]
[330424280,1719372872391,150.5,0.0001398,30]
[330424281,1719372873318,150.5,0.0001397,30]
[330424282,1719372942212,2481.564919,0.000112,2]
[330424285,1719373115449,150.5,0.0001399,30]
[330424286,1719373116009,150.5,0.0001398,30]
[330424287,1719373116544,150.5,0.0001397,30]
[330424292,1719373336074,151.0,0.00026,120]
[330424293,1719373351554,228.5,0.0001399,30]
[330424294,1719373378162,206.02,0.00025893,120]
[330424296,1719373455024,264.23338183,0.00011775,2]
[330424297,1719373472429,151.0,0.00026,120]
[330424309,1719373833004,-3775.0,0.00012436,2]
[330424310,1719373833015,-481.87186993,0.0001251,2]
[330424311,1719373833026,-300.0,0.00013899,2]
[330424312,1719373833036,-239.5842,0.000139,2]
[330424314,1719373833046,-5661.98961139,0.000139,2]
[330424316,1719373833057,-254.54514234,0.000139,2]
[330424318,1719373833067,-3395.4769,0.000139,2]
[330424320,1719373833078,-309.8338006,0.00013999,2]
[330424322,1719373833091,-690.1661994,0.00013999,2]
[330424323,1719373833101,-399.31633648,0.00013999,2]
[330424324,1719373833111,-151.81272977,0.00013999,2]
[330424325,1719373833121,-4167.9925973,0.00014,2]
[330424326,1719373833135,-4384.90963218,0.00014,2]
[330424327,1719373833162,-4121.07153573,0.00014,2]
[330424328,1719373833174,-23514.81195633,0.00014,2]
[330424329,1719373833186,-548.70135202,0.00014,2]
[330424330,1719373833198,-1916.80238943,0.00014,2]
[330424331,1719373833222,-1506.26770272,0.00014,2]
[330424332,1719373833234,-706.07482364,0.00014,2]
[330424333,1719373833252,-1133.16129937,0.00014,2]
[330424334,1719373833264,-565.09049799,0.00014,2]
[330424335,1719373833280,-1421.18809713,0.00014,2]
[330424336,1719373833292,-558.15546194,0.00014,2]
[330424337,1719373833304,-1266.60175907,0.00014,2]
[330424338,1719373833316,-574.25050338,0.00014,2]
[330424339,1719373833329,-288.51537332,0.00014,2]
[330424341,1719373833340,-1006.56610634,0.00014,2]
[330424342,1719373833372,-402.53859853,0.00014,2]
[330424343,1719373833384,-2142.48428039,0.00014,2]
[330424346,1719373833474,-10078.06183288,0.00014,2]
[330424347,1719373833486,-2532.67457983,0.00014,2]
[330424348,1719373833524,-9616.93811078,0.00014,2]
[330424349,1719373833537,-12182.78132822,0.00014,2]
[330424350,1719373833550,-134960.13848377,0.00014,2]
[330424351,1719373833562,-296.5600783,0.00014,2]
[330424352,1719373833574,-903.55095595,0.00014,2]
[330424353,1719373833586,-518.40021227,0.00014,2]
[330424354,1719373833598,-1181.42468244,0.00014,2]
[330424355,1719373833611,-831.89043348,0.00014,2]
[330424356,1719373833641,-1297.07205527,0.00014,2]
[330424357,1719373833653,-174668.83024296,0.00014,2]
[330424358,1719373833664,-1432.22460182,0.00014,2]
[330424389,1719373838063,-1343.91535784,0.000139,2]
[330424391,1719373838073,-2168.07762082,0.00014,2]
[330424393,1719373838085,-980.81520194,0.00014,2]
[330424396,1719373838101,-3490.02367872,0.00014,2]
[330424403,1719373838163,-622.83715495,0.00014,2]
[330424404,1719373838175,-2835.95935006,0.00014,2]
[330424405,1719373838186,-25438.78120311,0.00014,2]
[330424406,1719373838199,-1485.99999982,0.00014,2]
[330424407,1719373838215,-24502.52742625,0.00014,2]
[330424408,1719373838266,-457.38713566,0.00014,2]
[330424409,1719373838279,-420.25335452,0.00014,2]
[330424410,1719373838291,-16592.60688411,0.00014,2]
[330424411,1719373838302,-12057.3872453,0.00014,2]
[330424412,1719373838322,-1928.236895,0.00014,2]
[330424413,1719373838334,-299.13694595,0.00014,2]
[330424414,1719373838350,-556.34975306,0.00014,2]
[330424415,1719373838362,-1340.01178555,0.00014,2]
[330424416,1719373838386,-1189.99134495,0.00014,2]
[330424417,1719373838450,-609.55481835,0.00014,2]
[330424506,1719373840191,-758.76725502,0.00014,2]
[330424507,1719373840204,-4045.98543357,0.00014,2]
[330424508,1719373840215,-568.44026992,0.00014,2]
[330424509,1719373840227,-310.68572406,0.00014,2]
[330424510,1719373840289,-76870.94442388,0.00014,2]
[330424511,1719373840397,-34951.99743728,0.00014,2]
[330424512,1719373840453,-31212.5833153,0.00014,2]
[330424513,1719373840555,-48971.4985667,0.00014,2]
[330424535,1719373843199,-392.61403957,0.000139,2]
[330424537,1719373843208,-1571.34219694,0.00014,2]
[330424539,1719373843285,-18771.99661498,0.00014,2]
[330424540,1719373843297,-31543.62233501,0.00014,2]
[330424541,1719373843308,-270.00257877,0.00014,2]
[330424542,1719373843319,-822.66,0.00014,2]
[330424543,1719373843510,-871838.05689357,0.00014,2]
[330424544,1719373843530,-1496054.30088049,0.00014,2]
[330424545,1719373843621,-1000.0,0.00014,2]
[330424546,1719373843640,-486.64475688,0.00014,2]
[330424559,1719373846188,-1639.6528782,0.00014,2]
[330424563,1719373846214,-6207.70780033,0.00014,2]
[330424568,1719373954702,1559.4,0.00026,120]
[330424569,1719374052316,-1275.3631,0.000139,2]
[330424570,1719374052337,-168.24,0.00013997,2]
[330424571,1719374052368,-117646.3969,0.00014,2]
[330424572,1719374717718,-5660.0,0.00015,10]
[330424573,1719374915638,313.08788961,0.00018182,30]
[330424574,1719374920173,368.22044855,0.000251,120]
[330424575,1719374920239,1230.6458857,0.0002512,120]
[330424580,1719375032348,-493.4705516,0.00012986,2]
[330424581,1719375032358,-908.21479,0.0001386,2]
[330424582,1719375032367,-300.0,0.00013898,2]
[330424583,1719375032377,-4684.07067913,0.00013899,2]
[330424584,1719375032388,-889.15149544,0.00013899,2]
[330424585,1719375032531,-16.30023807,0.00013899,2]
[330424586,1719375032542,-450.037073,0.00013899,2]
[330424587,1719375032557,-492.24484728,0.00013899,2]
[330424588,1719375032569,-13473.05108256,0.00013899,2]
[330424589,1719375032578,-77594.8218,0.000139,2]
[330424590,1719375032587,-10070.4742,0.000139,2]
[330424591,1719375032596,-153.17349265,0.000139,2]
[330424593,1719375032605,-1227.52902551,0.000139,2]
[330424594,1719375032614,-7266.9724,0.000139,2]
[330424595,1719375032623,-700.0,0.0001395,5]
[330424596,1719375032632,-253396.95229735,0.00014,2]
[330424597,1719375032656,-442.3275093,0.00014,2]
[330424598,1719375032668,-14758.376858,0.00014,2]
[330424599,1719375032684,-286886.23902432,0.00014,2]
[330424600,1719375032702,-14891.42473928,0.00014,2]
[330424601,1719375032713,-18570.756,0.00014,2]
[330424602,1719375032726,-4964.4729151,0.00014,2]
[330424603,1719375032735,-6903.09,0.00014,2]
[330424604,1719375032745,-1169.8580049,0.00014899,2]
[330424605,1719375032756,-57.67102059,0.00014899,2]
[330424606,1719375032765,-2009.48672218,0.00014899,2]
[330424607,1719375032775,-169.61234555,0.00015,2]
[330424608,1719375032784,-700.0,0.00015,5]
[330424609,1719375032793,-420.0,0.00015228,2]
[330424610,1719375032802,-414.74,0.00015561,2]
[330424611,1719375032811,-1286.43927606,0.00015897,2]
[330424612,1719375032821,-157.02434713,0.00015897,2]
[330424613,1719375032830,-532.32231571,0.00015897,2]
[330424614,1719375032839,-845.41837598,0.00015898,2]
[330424615,1719375032851,-382.11064951,0.00015898,2]
[330424616,1719375032860,-155.0,0.00015999,2]
[330424617,1719375032869,-326.025,0.00015999,2]
[330424618,1719375032879,-908.2148,0.0001636,2]
[330424619,1719375032888,-587.0,0.00016684,2]
[330424620,1719375032897,-5111.38448023,0.00016897,2]
[330424621,1719375032907,-1227.52902549,0.00016897,2]
[330424622,1719375032916,-206.02,0.00017262,2]
[330424623,1719375032928,-1000.0,0.00017573,2]
[330424624,1719375032938,-250.0,0.0001762,2]
[330424625,1719375032947,-414.74,0.00017825,2]
[330424626,1719375032957,-6296.65628592,0.00017858,2]
[330424627,1719375032969,-4265.1967325,0.00017858,2]
[330424634,1719375038333,-466.76010482,0.00012999,2]
[330424635,1719375038344,-2654.85100931,0.00017858,2]
[330424636,1719375038357,-1717.2,0.00017858,2]
[330424637,1719375038369,-1259.0183075,0.00017858,2]
[330424638,1719375038452,-706.0,0.000165,5]
[330424639,1719375038466,-7697.07766477,0.00017858,2]
[330424640,1719375038477,-5111.38448023,0.00017896,2]
[330424641,1719375038487,-1227.52902549,0.00017896,2]
[330424642,1719375038497,-791.0,0.00018281,2]
[330424643,1719375038508,-908.2148,0.0001886,2]
[330424644,1719375038518,-5111.38448023,0.00018894,2]
[330424645,1719375038527,-1227.52902549,0.00018894,2]
[330424646,1719375038537,-326.12334655,0.00019178,2]
[330424647,1719375038548,-250.0,0.00019178,2]
[330424648,1719375038558,-3071.06619753,0.00019349,2]
[330424649,1719375038568,-1000.0,0.00019769,2]
[330424650,1719375038579,-5111.38448023,0.00019893,2]
[330424651,1719375038589,-1227.52902549,0.00019893,2]
[330424652,1719375038600,-172.7615634,0.0002,2]
[330424653,1719375038610,-1000.0,0.0002,7]
[330424654,1719375038620,-414.74,0.00020088,2]
[330424655,1719375038630,-2635.0,0.000201,3]
[330424656,1719375038640,-3505.0,0.00020141,2]
[330424657,1719375038650,-6272.64999256,0.00020271,2]
[330424658,1719375038660,-6272.64999256,0.00020271,2]
[330424659,1719375038670,-3965.70350846,0.00020272,2]
[330424660,1719375038683,-720.0,0.000204,4]
[330424661,1719375038692,-418.51,0.00020702,2]
[330424662,1719375038701,-418.51,0.00020702,2]
[330424663,1719375038711,-418.51,0.00020702,2]
[330424664,1719375038721,-418.51,0.00020702,2]
[330424665,1719375038731,-401.91,0.00020702,2]
[330424666,1719375038741,-179.2835893,0.0002079,2]
[330424667,1719375038752,-748.63093571,0.000208,2]
[330424668,1719375038762,-237.86632706,0.000208,2]
[330424669,1719375038772,-5111.38448023,0.00020892,2]